Cogmind - Beta 15 @@@ ROGUE MODE // 2025.08.12 @ 13:15:42 Player: shapeshifter Result: Destroyed by G-47 Trooper with Particle Gun Performance ------------- Evolutions (1) 500 Regions Visited (6) 1200 Robots Destroyed (38) 190 Value Destroyed (923) 923 Prototype IDs (0) 0 Alien Tech Used (0) 0 Bonus (381) 381 TOTAL SCORE: 3194 Bonus ------- Follower Combat Kills 381 Cogmind --------- Core Integrity 0/400 Matter 262/300 Energy 60/100 System Corruption 0% Temperature Hot (240) Movement Rolling (140) Ox4 Location -8/Mines Parts ------- > --- POWER (1) -------- (None) > --- PROPULSION (3) --- Wheel > --- UTILITY (3) ------ High-capacity Storage Unit Visual Processing Unit > --- WEAPON (2) ------- Particle Cannon > --- INVENTORY (20) --- Aluminum Leg Aluminum Leg Carbon-fiber Leg Huge Storage Unit High-capacity Battery (250) High-capacity Matter Pod (200) Improved Terrain Scanner Makeshift Transmission Jammer Makeshift Cloaking Device Makeshift System Shield Particle Cannon Peak State ------------ > --- POWER ------------ Light Nuclear Core > --- PROPULSION ------- Light Treads Light Treads Light Treads > --- UTILITY ---------- High-capacity Storage Unit Visual Processing Unit Seismic Detector > --- WEAPON ----------- Heavy Assault Rifle Heavy Assault Rifle > --- INVENTORY -------- Light Ion Engine Light Ion Engine Aluminum Leg Aluminum Leg Wheel Wheel Wheel Wheel Huge Storage Unit High-capacity Battery High-capacity Matter Pod Improved Terrain Scanner Makeshift Transmission Jammer Makeshift Cloaking Device Makeshift System Shield EM Shotgun EM Shotgun Particle Cannon Particle Cannon Makeshift Shrapnel Gun [Rating: 18] Favorites ----------- Power Light Nuclear Core Engine Light Ion Engine Power Core Light Nuclear Core Propulsion Light Treads Treads Light Treads Leg Improved Aluminum Leg Wheel Wheel Utility High-capacity Storage Unit Device Seismic Detector Storage High-capacity Storage Unit Processor Visual Processing Unit Protection Light Armor Plating Weapon Heavy Assault Rifle Energy Gun EM Shotgun Energy Cannon Particle Cannon Ballistic Gun Heavy Assault Rifle Build | -11 -10 -10 -9 -9 -9 -8 ------- Run | Yrd Mat Min Mat Min Exi Min Slots Evolved 2 | . . . 2 . . . Power . | . . . . . . . Propulsion 1 | . . . 1 . . . Utility 1 | . . . 1 . . . Weapon . | . . . . . . . Parts Attached 30 | 7 7 . 2 3 2 9 Power 3 | 1 . . . 1 . 1 Engine 2 | 1 . . . . . 1 Core 1 | . . . . 1 . . Reactor . | . . . . . . . Propulsion 10 | 2 2 . 1 . . 5 Treads 5 | 2 . . 1 . . 2 Leg 1 | . . . . . . 1 Wheel 4 | . 2 . . . . 2 Hover . | . . . . . . . Flight . | . . . . . . . Utility 8 | 2 2 . 1 2 . 1 Device 2 | 1 . . . 1 . . Storage 3 | 1 2 . . . . . Processor 1 | . . . . 1 . . Hackware . | . . . . . . . Protection 2 | . . . 1 . . 1 Artifact . | . . . . . . . Weapon 9 | 2 3 . . . 2 2 Energy Gun 3 | 1 . . . . 2 . Energy Cannon 2 | . 1 . . . . 1 Ballistic Gun 4 | 1 2 . . . . 1 Ballistic Cannon . | . . . . . . . Launcher . | . . . . . . . Special Weapon . | . . . . . . . Impact Weapon . | . . . . . . . Slashing Weapon . | . . . . . . . Piercing Weapon . | . . . . . . . Special Melee Weapon . | . . . . . . . Unidentified Prototypes . | . . . . . . . Parts Lost 19 | . . . . 2 . 17 Power 3 | . . . . . . 3 Propulsion 9 | . . . . . . 9 Utility 4 | . . . . 2 . 2 Weapon 3 | . . . . . . 3 Highest Loss Streak 6 | . . . . 1 . 6 To Critical Strikes . | . . . . . . . Average Backups 14 | 4 11 15 13 14 17 14 Power 1 | . 1 1 1 1 2 . Propulsion 4 | 3 4 5 4 4 6 5 Utility 4 | . 3 5 4 4 5 7 Weapon 3 | . 2 4 4 4 4 1 Tool/Special . | . . . . . . . Unused Backups 12 | . 1 . 1 . . 10 Power 1 | . . . . . . 1 Propulsion 3 | . . . . . . 3 Utility 7 | . . . 1 . . 6 Weapon 1 | . 1 . . . . . Tool/Special . | . . . . . . . Average Slot Usage (%) 98 | . 100 100 99 99 100 91 Engine 4 | . 14 14 11 . . 8 Core 6 | . . . . 10 11 . Treads 24 | . 5 . 32 33 33 12 Wheel 5 | . 23 28 . . . 12 Device 9 | . 14 14 11 10 11 5 Storage 11 | . 14 14 11 11 11 11 Processor 5 | . . . . 2 11 11 Protection 5 | . . . 10 8 . 5 Energy Gun 2 | . 8 . . . . 7 Energy Cannon 2 | . . . . . . 9 Ballistic Gun 18 | . 19 28 22 22 22 4 Peak Build Rating 18 | 7 11 11 13 16 18 17 Average Rating 14 | 4 9 11 12 15 16 15 On Entrance 10 | . 7 11 11 13 16 17 Naked Turns . | . . . . . . . Heaviest Build 90 | 13 90 50 53 55 52 53 Greatest Support 60 | 40 40 20 60 60 60 60 Greatest Overweight (x) 4 | . 4 2 . . . 2 Average Overweight (x) . | . 2 2 . . . . Largest Inventory Capacity 25 | 8 25 20 20 20 20 20 Average Capacity 19 | 7 21 20 20 20 20 20 Most Carried 20 | 8 16 15 14 16 20 19 Average Carried 14 | 5 11 15 13 14 17 14 Final Capacity 20 | 8 20 20 20 20 20 20 Final Carried 18 | 7 15 15 13 16 18 11 Class Distribution -------------------- 53% | Mutant 45% | Scavenger-Mutant Dominant Class ---------------- Mutant | -10/Materials Mutant | -10/Mines Mutant | -9/Materials Mutant | -9/Mines Scavenger-Mutant | -9/Exiles Scavenger-Mutant | -8/Mines Resources | -11 -10 -10 -9 -9 -9 -8 ----------- Run | Yrd Mat Min Mat Min Exi Min Matter Collected 917 | 288 97 28 97 260 . 147 Remotely . | . . . . . . . Salvage Created 1252 | 133 142 41 39 448 . 449 Parts 77 | 9 10 4 4 23 . 27 Haulers Intercepted 1 | . 1 . . . . . Recyclers Shooed . | . . . . . . . Parts Field Recycled . | . . . . . . . Retrieved Matter . | . . . . . . . Parts Self-Destructed . | . . . . . . . Prevented . | . . . . . . . Kills | -11 -10 -10 -9 -9 -9 -8 ------- Run | Yrd Mat Min Mat Min Exi Min Combat Hostiles Destroyed 33 | . 2 3 1 12 . 15 Guns 28 | . 2 3 1 12 . 10 Cannons 3 | . . . . . . 3 AOE 2 | . . . . . . 2 Classes Destroyed 8 | 2 3 1 . 1 . 1 Tunneler 4 | 2 . . . 2 . . Hauler 1 | . 1 . . . . . Recycler 1 | 1 . . . . . . Watcher 2 | . 1 . 1 . . . Swarmer 11 | . . 3 1 . . 7 Grunt 18 | . 2 . . 9 . 7 Brawler 1 | . . . . . . 1 Assembled 3 | . . . . 3 . . Best Kill Streak 5 | 3 2 3 2 5 . 4 Combat Bots Only 4 | . 1 3 1 4 . 4 Max Kills in Single Turn 2 | 1 1 1 2 2 . 1 Gunslinging . | . . . . . . . Exploded 1 | . . . . . . 1 Melee . | . . . . . . . Uniques/NPCs Destroyed . | . . . . . . . Combat | -11 -10 -10 -9 -9 -9 -8 -------- Run | Yrd Mat Min Mat Min Exi Min Hostile Shots Fired 247 | . 13 2 15 88 . 129 Missed 66 | . 6 . 6 18 . 36 Hits 181 | . 7 2 9 70 . 93 Projectile 181 | . 7 2 9 70 . 93 Critical Strikes 5 | . . . . 1 . 4 Part Disruptions 2 | . . . . 2 . . Damage Taken 2274 | . 75 20 74 770 . 1335 Core 413 | . . 7 24 124 . 258 Absorbed by Shields . | . . . . . . . Core Remaining (%) 98 | 100 . 97 . . . . Volleys Fired 150 | 6 17 3 4 56 . 64 Largest 2 | 2 2 2 2 2 . 2 Hottest 113 | 70 70 46 46 46 . 113 Shots Fired 232 | 12 33 6 8 80 . 93 Gun 197 | 12 33 6 8 80 . 58 Cannon 35 | . . . . . . 35 Launcher . | . . . . . . . Special . | . . . . . . . Kinetic 144 | 6 20 6 8 80 . 24 Thermal 54 | 6 13 . . . . 35 Explosive . | . . . . . . . Electromagnetic 34 | . . . . . . 34 Robot Hit Streak 10 | 5 7 1 3 9 . 10 Robot Miss Streak 5 | 3 4 1 1 4 . 5 Penetration Max . | . . . . . . . Secondary Targets . | . . . . . . . Shots Hit Robots 166 | 7 23 3 5 53 . 75 Core Hits 77 | 4 6 3 2 21 . 41 Critical Kills . | . . . . . . . Critical Parts Destroyed . | . . . . . . . Critical Strikes 1 | 1 . . . . . . Burn 1 | 1 . . . . . . Melee Attacks . | . . . . . . . Impact . | . . . . . . . Slashing . | . . . . . . . Piercing . | . . . . . . . Sneak Attacks . | . . . . . . . Combat Hostiles . | . . . . . . . Follow-up Attacks . | . . . . . . . Damage Inflicted 2803 | 89 296 50 95 903 . 1370 Guns 2250 | 89 296 50 95 903 . 817 Cannons 453 | . . . . . . 453 Explosions 100 | . . . . . . 100 Melee . | . . . . . . . Ramming . | . . . . . . . Kinetic 1736 | 50 185 50 95 903 . 453 Thermal 703 | 39 111 . . . . 553 Explosive . | . . . . . . . Electromagnetic 364 | . . . . . . 364 Impact . | . . . . . . . Slashing . | . . . . . . . Piercing . | . . . . . . . Highest Corruption . | . . . . . . . Average Corruption . | . . . . . . . Corruption Purged . | . . . . . . . Corruption Blocked . | . . . . . . . Overload Shots . | . . . . . . . Overflow Damage . | . . . . . . . Projectiles . | . . . . . . . Explosions . | . . . . . . . Melee . | . . . . . . . Knockbacks . | . . . . . . . Impact . | . . . . . . . Kinetic . | . . . . . . . Secondary . | . . . . . . . Self-Inflicted Damage 40 | . . . . . . 40 Shots 1 | . . . . . . 1 Rammed . | . . . . . . . Targets Rammed . | . . . . . . . Kicked . | . . . . . . . Crushed . | . . . . . . . Highest Temperature 325 | 27 159 . . 60 . 325 Average Temperature 102 | 11 87 . . 18 . 137 Received Heat Transfer 1259 | . 42 . . 560 . 657 Effects 2 | . . . . . . 2 Energy Bleed 2 | . . . . . . 2 Siege Activations . | . . . . . . . Martial Activations . | . . . . . . . Shielding Activations . | . . . . . . . Robots Disrupted . | . . . . . . . Combat Hostiles . | . . . . . . . Robots Corrupted . | . . . . . . . Combat Hostiles . | . . . . . . . Parts Fried 1 | . . . . . . 1 Impact Corruptions . | . . . . . . . Robots Melted . | . . . . . . . Combat Hostiles . | . . . . . . . Parts Melted 1 | . . 1 . . . . Heat Transferred 1432 | 185 333 . . . . 914 Parts Sabotaged . | . . . . . . . Parts Stolen . | . . . . . . . Parts Stripped . | . . . . . . . Power Chain Reactions 2 | . . . . . . 2 Alert | -11 -10 -10 -9 -9 -9 -8 ------- Run | Yrd Mat Min Mat Min Exi Min Maximum Alert Level . | . . . . . . . Low Security (%) 100 | 100 100 100 100 100 . 100 Level 1 . | . . . . . . . Level 2 . | . . . . . . . Level 3 . | . . . . . . . Level 4 . | . . . . . . . Level 5 . | . . . . . . . High Security . | . . . . . . . Max Security . | . . . . . . . Peak Influence 127 | 10 37 81 127 127 . 117 Initial 31 | . . . 31 25 . . Average 40 | 1 8 5 55 43 . 54 Influence Increases 1318 | 15 84 81 137 464 . 537 Destroy 0b10 Robot/C 900 | . 40 60 80 340 . 380 Destroy 0b10 Robot/NC 55 | 15 10 . 15 10 . 5 Destroy Leader 128 | . 4 10 24 30 . 60 Allied During Kill 126 | . . 11 18 76 . 21 Successful Hack 38 | . 30 . . 8 . . Destroy Structure 11 | . . . . . . 11 Lose Combat Pursuer 60 | . . . . . . 60 Influence Decreases 1288 | 15 84 . 151 504 27 507 Entered New Map 119 | . . . 50 42 27 . Time Decay 927 | 15 84 . 101 422 . 305 Lost Part 142 | . . . . 20 . 122 Lost Ally 100 | . . . . 20 . 80 Squads Dispatched . | . . . . . . . Investigation . | . . . . . . . Extermination . | . . . . . . . Reinforcement . | . . . . . . . Assault . | . . . . . . . Garrison . | . . . . . . . Intercept . | . . . . . . . Searches Triggered . | . . . . . . . Construction Impeded . | . . . . . . . Haulers Reinforced . | . . . . . . . Active Scanning Responses . | . . . . . . . Cargo Convoy Interrupts . | . . . . . . . Stealth | -11 -10 -10 -9 -9 -9 -8 --------- Run | Yrd Mat Min Mat Min Exi Min Distress Signals 2 | . . . 2 . . . Communications Jammed . | . . . . . . . Distress Signals . | . . . . . . . Times Spotted 55 | . 3 3 8 18 . 23 Peak Tracking Total 6 | . 2 2 6 4 . 4 Tactical Retreats 3 | . . . . 1 . 2 Traps | -11 -10 -10 -9 -9 -9 -8 ------- Run | Yrd Mat Min Mat Min Exi Min Traps Triggered . | . . . . . . . Indirectly . | . . . . . . . Trap Hack Attempts . | . . . . . . . Triggered . | . . . . . . . Disarmed . | . . . . . . . Reprogrammed . | . . . . . . . Reused . | . . . . . . . Traps Extracted . | . . . . . . . Installed . | . . . . . . . Triggered . | . . . . . . . Machines | -11 -10 -10 -9 -9 -9 -8 ---------- Run | Yrd Mat Min Mat Min Exi Min Machines Disabled . | . . . . . . . Max in Single Turn . | . . . . . . . Machines Repaired . | . . . . . . . Machines Dismantled . | . . . . . . . Machines Sabotaged . | . . . . . . . Overloaded Fab Kills . | . . . . . . . Hacking | -11 -10 -10 -9 -9 -9 -8 --------- Run | Yrd Mat Min Mat Min Exi Min Machines Accessed 10 | . 5 . 2 1 2 . Terminals 7 | . 4 . 2 1 . . Fabricators . | . . . . . . . Repair Stations . | . . . . . . . Recycling Units 1 | . 1 . . . . . Scanalyzers . | . . . . . . . Garrison Access . | . . . . . . . Total Hacks 30 | . 15 . 5 4 6 . Successful 17 | . 9 . . 2 6 . Failed 13 | . 6 . 5 2 . . Catastrophic 2 | . 1 . 1 . . . Database Lockouts . | . . . . . . . Manual 13 | . 4 . 5 4 . . Terminals 22 | . 13 . 5 4 . . Fabricators . | . . . . . . . Repair Stations . | . . . . . . . Recycling Units 2 | . 2 . . . . . Scanalyzers . | . . . . . . . Garrison Access . | . . . . . . . Terminal Hacks 13 | . 6 . . 1 6 . Record 6 | . . . . . 6 . Emergency Access Points 2 | . 2 . . . . . Hauler Manifests 1 | . 1 . . . . . Registered Components 2 | . 1 . . 1 . . Zone Layout 2 | . 2 . . . . . Fabricator Hacks . | . . . . . . . Repair Station Hacks . | . . . . . . . Recycling Unit Hacks 1 | . 1 . . . . . Report Inventory 1 | . 1 . . . . . Scanalyzer . | . . . . . . . Garrison Access Hacks . | . . . . . . . Unauthorized Hacks 3 | . 2 . . 1 . . Terminals 3 | . 2 . . 1 . . Botnet 3 | . 2 . . 1 . . Fabricators . | . . . . . . . Repair Stations . | . . . . . . . Recycling Units . | . . . . . . . Scanalyzers . | . . . . . . . Garrison Access . | . . . . . . . Data Cores Recovered . | . . . . . . . Used . | . . . . . . . Hacking Detections 8 | . 5 . 2 1 . . Full Trace Events . | . . . . . . . Feedback Events . | . . . . . . . Feedback Blocked . | . . . . . . . Robot Schematics Acquired . | . . . . . . . Robots Built . | . . . . . . . Authchips . | . . . . . . . Time . | . . . . . . . Total Robot Build Rating . | . . . . . . . Part Schematics Acquired . | . . . . . . . Parts Built . | . . . . . . . Authchips . | . . . . . . . Time . | . . . . . . . Total Part Build Rating . | . . . . . . . Parts Repaired . | . . . . . . . Time . | . . . . . . . Parts Recycled . | . . . . . . . Recycled Matter . | . . . . . . . Retrieved Matter . | . . . . . . . Retrieved Components . | . . . . . . . Parts Scanalyzed . | . . . . . . . Part Schematics Acquired . | . . . . . . . Parts Damaged . | . . . . . . . Bothacking | -11 -10 -10 -9 -9 -9 -8 ------------ Run | Yrd Mat Min Mat Min Exi Min Used RIF Installer . | . . . . . . . Robots Hacked . | . . . . . . . Non-combat . | . . . . . . . Combat . | . . . . . . . Robot Hacks Applied . | . . . . . . . Relay Couplers Released . | . . . . . . . Fabnet Peak Effective % . | . . . . . . . Robots Rewired 3 | . . . . . 3 . Allies Hacked . | . . . . . . . Hacks Repelled . | . . . . . . . Allies | -11 -10 -10 -9 -9 -9 -8 -------- Run | Yrd Mat Min Mat Min Exi Min Total Allies 8 | . . 3 . 2 3 . Largest Group 5 | . . 3 3 5 4 4 Highest-Rated Group 87 | . . 40 40 87 39 32 Highest-Rated Ally 31 | . . 16 16 31 31 8 Total Orders . | . . . . . . . Ally Attacks 74 | . . 5 23 27 . 19 Total Damage 691 | . . 40 166 368 . 117 Kills 19 | . . . 5 9 . 5 Allies Corrupted . | . . . . . . . Allies Melted . | . . . . . . . Intel | -11 -10 -10 -9 -9 -9 -8 ------- Run | Yrd Mat Min Mat Min Exi Min Active Infowar (turns) 3637 | 33 270 179 273 1409 718 755 Optics 1803 | . . . . 330 718 755 Seismic 3233 | 33 270 179 273 1409 718 351 Robot Analysis Total . | . . . . . . . Derelict Logs Recovered 2 | . . . . 2 . . Drone Launches . | . . . . . . . Drone Recoveries . | . . . . . . . Exploration | -11 -10 -10 -9 -9 -9 -8 ------------- Run | Yrd Mat Min Mat Min Exi Min Turns Passed 3790 | 130 270 179 273 1465 718 755 Spaces Moved 1978 | 66 148 140 156 638 429 401 Core 12 | 12 . . . . . . Treads 1424 | 54 25 . 156 638 429 122 Legs . | . . . . . . . Wheels 542 | . 123 140 . . . 279 Hover . | . . . . . . . Flight . | . . . . . . . Fastest Speed 50 | 50 110 110 160 160 160 95 Average Speed 149 | 140 133 110 160 160 160 137 Slowest Speed 320 | 160 160 110 160 160 160 320 Overloaded Moves . | . . . . . . . Propulsion Burnouts . | . . . . . . . Robots Hopped . | . . . . . . . Potential Cave-ins . | . . . . . . . Cave-ins Triggered . | . . . . . . . Exploration Rate (%) 52 | 5 25 39 18 96 90 93 Regions Visited 6 Branch Regions 4 Pre-discovered Areas 1 | . . . . . 1 . Known Exits Taken . | . . . . . . . Unknown Exits Taken 6 | 1 1 1 1 1 1 . Scrap Searched 2 | . . . . 2 . . Spaces Dug . | . . . . . . . Terrain Destroyed 12 | . . . . . . 12 Melee . | . . . . . . . Projectile 1 | . . . . . . 1 AOE 11 | . . . . . . 11 Terrain Rammed . | . . . . . . . Walls Destroyed . | . . . . . . . Machines Disabled . | . . . . . . . Actions | -11 -10 -10 -9 -9 -9 -8 --------- Run | Yrd Mat Min Mat Min Exi Min Total 2585 | 92 187 159 171 1002 462 512 Wait 362 | . . 17 6 301 10 28 Move 1972 | 65 147 139 155 637 428 401 Hop . | . . . . . . . Pick Up 41 | 14 11 . 1 5 4 6 Fast Attach . | . . . . . . . Attach 27 | 7 2 . 2 2 2 12 Detach . | . . . . . . . Swap 9 | . 6 . 2 1 . . Drop 8 | . 4 . 1 . 2 1 Fire 150 | 6 17 3 4 56 . 64 Melee . | . . . . . . . Ram . | . . . . . . . Kick . | . . . . . . . Crush . | . . . . . . . Escape Stasis . | . . . . . . . Rewire 16 | . . . . . 16 . Trap . | . . . . . . . Miscellaneous . | . . . . . . . Route ------- -11/Scrapyard -10/Materials (discovered 3 exits: Mat / [*Min] / [*Sub]) -10/Mines -9/Materials -9/Mines (discovered 3 exits: [*Mat x2] / *Exi) -9/Exiles -8/Mines (discovered 2 exits: [*Mat x2]) History --------- Turn | Location | Event 44 | -11/Scrapyard | Discovered new exit (range 15) 131 | -11/Scrapyard | Entered Materials 251 | -10/Materials | Discovered new exit (range 15) 315 | -10/Materials | Build established: Mutant 353 | -10/Materials | Discovered new exit (range 11) 358 | -10/Materials | Discovered new exit (range 15) 401 | -10/Materials | Entered Mines 477 | -10/Mines | Assisted by bots powering up and referring to "LRC-V3" 561 | -10/Mines | Discovered new exit (range 7) 580 | -10/Mines | Entered Materials 580 | -9/Materials | Accompanied by 3 allies 580 | -9/Materials | Evolved 2 slots: Propulsion x1, Utility x1 713 | -9/Materials | Discovered new exit (range 8) 853 | -9/Materials | Entered Mines 853 | -9/Mines | Accompanied by 3 allies 1005 | -9/Mines | Discovered new exit (range 5) 1609 | -9/Mines | Deemed a non-threat by the Exiles lab entrance 1609 | -9/Mines | Discovered new exit (range 5) 1668 | -9/Mines | Learned Materials emergency access door positions 1686 | -9/Mines | Excavation squad dispatched 1686 | -9/Mines | A large section of the Mines collapsed 1936 | -9/Mines | Excavation squad dispatched 2216 | -9/Mines | Discovered new exit (range 9) 2275 | -9/Mines | Build established: Scavenger-Mutant 2318 | -9/Mines | Entered Exiles 2318 | -9/Exiles | Found Exiles lab destroyed 2318 | -9/Exiles | Accompanied by 2 allies 2348 | -9/Exiles | Led the pair of lost Derelicts to a safe place 2554 | -9/Exiles | Learned location of Zion (-7) 2999 | -9/Exiles | Discovered new exit (range 15) 3036 | -9/Exiles | Entered Mines 3036 | -8/Mines | Accompanied by 4 allies 3136 | -8/Mines | Lost 5 parts (1p3n1w) 3160 | -8/Mines | Lost 4 allies 3370 | -8/Mines | Core integrity fell below 50% 3501 | -8/Mines | Discovered new exit (range 8) 3510 | -8/Mines | Lost 3 parts (1p2n) 3753 | -8/Mines | Discovered new exit (range 9) 3770 | -8/Mines | Core integrity fell below 20% 3791 | -8/Mines | Destroyed by G-47 Trooper with Particle Gun Last Messages --------------- 03483_ G-47 Trooper destroyed. 03489_ Acquired 23 matter. 03490_ Acquired 48 matter. 03491_ Acquired Carbon-fiber Leg. 03492_ Acquired 21 matter. 03501_ EXIT=FOUND 03509_ T-07 Excavator is excavating. 03636_ K-01 Serf collects debris. 03721_ T-07 Excavator is excavating. 03753_ EXIT=FOUND 03754_ Lgt. Ion Engine destroyed. 03759_ Wheel destroyed. 03763_ Lgt. Armor Plating destroyed. 03769_ Wheel destroyed. 03770_ G-47 Trooper destroyed. 03773_ Mak. Shrapnel Gun destroyed. 03775_ Critical hit (Burn: +37). 03780_ Overheating: Energy bleed (-11). 03781_ Wheel destroyed. 03781_ G-50 Soldier destroyed. Map ----- +----------------------------------------------------+ | | | | | | | | | | | | | | | | | | | | | | | | | | | | | ?????????????????????????????????????????????????? | | ?????????????????????#######?????????????????????? | | #########????????????# ?????????????????????? | | # ##??????????? ?????????????????????? | | ######## #??# < ?????????????????????? | | #??# ??????????????????????? | | #########???## g ??????????????????????? | | #### ##???????????? = ???????????????????##?? | | #??## =##????????????? [%= ??????????????????? ## | | ???##=% #??????????????#= ################???## # | | ???# * #??????????????# ## #???# # | | ??# ! #??????????????# @ #??## # | | #?##!%##??????????????# ######### #?## # | | ##?##!*###?????????????# #???????# #?# | | #??## =# #?????*= ###????# #?# | | #??##!=###????#%! ##???# #?# | | ???##*%###????#=########## #???# #???# | | ???#=% =##??????????????# #???# ##??## | | ####%=== ##????????????# ##??## ##?## | | [*[%= ##??????###??# ##???# ### | | =%%%% #?????? #??## ##???# | | ####### *% #?# #???##### ##??## | | ???????############ #???????## #???## # | | ######????????## ####????## ######## ## ## | | #????????# ##??## ?# #####? | | #### #???????## #?## ?# ##???? | | ???# #??????## #?# ###### ## ##??? | | ???# ######## #### #????# # #??? | | ???# ## ####### #??? | | #??# #?# ##??? | | #??###### ## ##### ### #???? | | #???????## #### ##??# ## ### ##???? | | #????????## #### ##???# #?## #????? | | ??????????## ## ##????# ####??# #????? | | ???????????# ##?????## #?????### #????? | | ???????????# ##???????## ##???????# #????? | +----------------------------------------------------+ Best States ------------- Heat Dissipation 28 Energy Generation 14 Energy Capacity 160 Matter Stores 300 Matter Capacity 300 Sight Range 18 Terrain Scan Density 10 Armor Coverage 150 Evasion (%) 50 Recoil Reduction 3 Item Schematics ----------------- None Robot Schematics ------------------ None Fabricated ------------ Nothing Repaired ---------- Nothing Alien Tech Used ----------------- None Achievements -------------- None Challenges ------------ None Game ------ Seed GunAngularBoomstick Manual? 0 Play Time 00:24:18 Cumulative 134.0 hours Start 2025.08.12 @ 12:53:57 End 2025.08.12 @ 13:15:42 Sessions 3 Manual Loads 0 Difficulty Rogue Special Mode None Game No. 232 Rogue 232 Adventurer 0 Explorer 0 Win Type - Total 2 Types 1/0/1/0/0/0/0/0/0/0 Lore% 73 Gallery% 69 Achievement% 49 Wizard Run 0 Options --------- Layout 1 ASCII 0 Keyboard 0 Movement Mouse Keybinds 0 Fullscreen 1 Font 24/Smallcaps Map View 50x40 Zoom Use 0% Tactical HUD 1 Map Filters NONE Filters NONE Steam 1 RUN: b87e7a79-bede-48e7-b200-f3f490b0aa8f